[Event "Cattolica Chess Festival 2022"]
[Site "Cattolica"]
[Date "2022.06.10"]
[Round "8.5"]
[White "Kanyamarala, Trisha"]
[Black "Souhardo Basak"]
[Result "1-0"]
[ECO "D36"]
[WhiteElo "2127"]
[BlackElo "2357"]
[Annotator "TA"]
[PlyCount "73"]
[EventDate "2022.06.04"]
[EventCountry "ITA"]
[SourceTitle "playchess.com"]
[Source "ChessBase"]
[SourceQuality "1"]
[TimeControl "5400+30"]

{[%evp 22,73,11,0,21,0,6,0,3,16,20,11,32,21,29,23,24,37,50,27,18,10,38,-27,-29,-43,-48,-121,-73,-111,0,0,0,0,47,49,60,52,40,40,27,47,211,199,196,190,497,495,720,681,845,826,1060,656]} 1. d4 {[%emt 0:30:08]} Nf6 {[%emt 0:30:17]} 2. c4 {[%emt 0:00:11]} e6 {[%emt 0:00:06]} 3. Nc3 {[%emt 0:00:06]} d5 {[%emt 0:00:07]} 4. cxd5 {[%emt 0:00:07]} exd5 {[%emt 0:00:04]} 5. Bg5 {[%emt 0:00:14]} Be7 {[%emt 0:00:08]} 6. e3 {[%emt 0:00:17]} O-O {[%emt 0:00:11]} 7. Bd3 {[%emt 0:00:21]} Re8 {[%emt 0:00:10]} 8. Nge2 {[%emt 0:00:21]} Nbd7 {[%emt 0:00:20][%cal Bb8d7,Bd7f8,Bf8e6][%mdl 32]} 9. O-O {[%emt 0:00:38]} c6 {[%emt 0:00:13]} 10. Qc2 {[%emt 0:00:29]} Nf8 {[%emt 0:00:09]} 11. f3 {[%emt 0:01:25]} g6 {[%emt 0:00:08] is recently more successful than 11...Be6.} 12. Bh4 {[%emt 0:00:40]} Ne6 {[%emt 0:00:42] D36: Queen's Gambit Declined: Exchange Variation: Main line (5 Bg5 c6 6 Qc2).} 13. Kh1 {[%emt 0:00:37]} b5 {[%emt 0:08:48]} 14. Bf2 {[%emt 0:00:22]} Bb7 {[%emt 0:01:13] The position is equal.} 15. e4 {[%emt 0:01:51][%cal Be3e4,Be4e5][%mdl 32]} b4 {[%emt 0:06:06]} 16. Na4 {[%emt 0:00:24]} Rc8 {[%emt 0:07:32]} 17. e5 {[%emt 0:00:38]} Nd7 {[%emt 0:02:12]} 18. f4 {[%emt 0:01:32]} c5 {[%emt 0:01:34]} 19. Qd2 {[%emt 0:00:51] [#]} Qa5 $146 {[%emt 0:07:45]} ({Predecessor:} 19... Nxd4 20. Nxd4 cxd4 21. Bxd4 Qa5 22. f5 Nxe5 23. Bxe5 Bf8 24. Qf4 Rxe5 25. Qxe5 Qxa4 26. fxg6 fxg6 {1-0 (56) Debashis,D (2544)-Panda,S (2211) Bhubaneswar 2019}) 20. Nxc5 {[%emt 0:11:57]} (20. Qd1 $5 {[%cal Rf4f5]}) 20... Ndxc5 {[%emt 0:00:30]} 21. dxc5 {[%emt 0:00:09] [#] Black must now prevent f5.} Nxc5 {[%emt 0:00:13]} 22. Bc2 {[%emt 0:02:57]} (22. f5 $14 Nxd3 23. Qxd3) 22... Ne4 $11 {[%emt 0:01:50]} 23. Bxe4 {[%emt 0:07:44]} dxe4 {[%emt 0:00:08]} 24. Bd4 {[%emt 0:02:25]} ({White should try} 24. a3 $15) 24... Qd5 {[%emt 0:19:38]} (24... Red8 $142 {Hoping for ...Ba6.} 25. Rfd1 Ba6) 25. Qe3 $17 {[%emt 0:02:39]} Bc5 {[%emt 0:01:30]} (25... Rc2 $17 {...Ba6 is the strong threat.} 26. Rfd1 Qe6) 26. Rfd1 $11 {[%emt 0:02:36]} Bxd4 {[%emt 0:02:40]} 27. Rxd4 {[%emt 0:02:15]} Qc5 {[%emt 0:00:20]} (27... Qb5 $11) 28. Rad1 $14 {[%emt 0:02:05][%cal Ba1d1,Bd1d4,Bd4d6,Bd6d7,Bd7b7][%mdl 32]} Rcd8 {[%emt 0:01:50]} 29. h3 $1 {[%emt 0:07:13]} Rxd4 {[%emt 0:01:44]} 30. Rxd4 {[%emt 0:01:01]} Kg7 {[%emt 0:05:33]} 31. Ng3 {[%emt 0:04:07]} Qc6 $2 {[%emt 0:00:00] This move loses the game for Black.} (31... Rc8 $14) 32. Rd6 $18 {[%emt 0:00:00]} (32. Rxb4 a5 33. Rb6 Qc7 $16) 32... Qc7 {[%emt 0:00:00]} 33. Kh2 {[%emt 0:00:00]} (33. Qxa7 h5) 33... Re6 $2 {[%emt 0:00:00]} (33... a5 {is tougher.} 34. Qd4 (34. Nxe4 $2 Bxe4 35. Qd2 Rc8 $19) 34... Kg8) 34. Qd4 {[%emt 0:00:00] White is clearly winning.} e3 {[%emt 0:00:00]} (34... h6 $142 35. f5 (35. Qxa7 e3 $18) (35. Nxe4 $2 Bxe4 36. Rxe6 Qc2 $19) (35. Qxb4 e3 $14) 35... gxf5 36. Nxf5+ Kh7) 35. f5 {[%emt 0:00:00]} h5 {[%emt 0:00:00][%cal Oc7c2] [#] Strongly threatening ...Qc2!} 36. Rd7 {[%emt 0:00:00]} Qc6 {[%emt 0:03:32]} 37. Rxb7 {[%emt 0:00:00] Weighted Error Value: White=0.10 (very precise) /Black=0.46} 1-0

[Event "Cattolica Chess Festival 2022"]
[Site "Cattolica"]
[Date "2022.06.10"]
[Round "8.6"]
[White "Kanyamarala, Tarun"]
[Black "Heinemann, Josefine"]
[Result "1-0"]
[ECO "E49"]
[WhiteElo "2388"]
[BlackElo "2300"]
[Annotator "TA"]
[PlyCount "81"]
[EventDate "2022.06.04"]
[EventCountry "ITA"]
[SourceTitle "playchess.com"]
[Source "ChessBase"]
[SourceQuality "1"]
[TimeControl "5400+30"]

{[%evp 18,81,0,-23,13,0,37,34,45,57,48,47,61,49,133,127,134,122,140,132,135,133,223,169,248,234,273,292,286,145,147,143,151,144,198,110,160,147,157,148,209,188,184,54,193,195,289,313,387,340,908,939,916,929,902,893,831,423,1501,1598,1276,1187,29985,29986,29988,29989]} 1. d4 {[%emt 0:30:03]} Nf6 {[%emt 0:30:06]} 2. c4 {[%emt 0:00:08]} e6 {[%emt 0:00:06]} 3. Nc3 {[%emt 0:00:10]} Bb4 {[%emt 0:00:06]} 4. e3 {[%emt 0:00:16]} O-O {[%emt 0:00:31]} 5. Bd3 {[%emt 0:00:14]} d5 {[%emt 0:00:37]} 6. a3 {[%emt 0:00:18]} Bxc3+ {[%emt 0:01:29]} 7. bxc3 {[%emt 0:00:11]} dxc4 {[%emt 0:00:09]} 8. Bxc4 {[%emt 0:00:08]} c5 {[%emt 0:00:07]} 9. Ne2 {[%emt 0:00:09]} Qc7 {[%emt 0:01:32]} 10. Ba2 {[%emt 0:01:06]} b5 {[%emt 0:01:55] E49: Nimzo-Indian: Rubinstein: 5 Bd3 d5 6 a3 Bxc3+ 7 bxc3.} 11. O-O {[%emt 0:04:06]} Bb7 {[%emt 0:01:16]} 12. f3 {[%emt 0:20:46] [#]} Rd8 $146 {[%emt 0:09:03] White is slightly better.} ({Predecessor:} 12... Nbd7 13. e4 e5 14. Be3 Rac8 15. Ng3 Nb6 16. Nf5 Rfd8 17. Bg5 cxd4 18. Bxf6 gxf6 {1-0 (39) Romanov,O (2404)-Jegorovas,A (2200) Birstonas 2002}) 13. e4 {[%emt 0:02:27]} Nc6 {[%emt 0:02:28]} 14. Be3 {[%emt 0:02:54]} Rac8 {[%emt 0:03:20]} 15. Qe1 {[%emt 0:01:42]} b4 {[%emt 0:08:51]} (15... cxd4 $14 16. cxd4 Ba6) 16. axb4 $16 {[%emt 0:15:12]} cxb4 {[%emt 0:00:06]} 17. c4 {[%emt 0:00:54][%cal Bc3c4,Bc4c5][%mdl 32]} (17. cxb4 Ba6 $16) 17... a5 {[%emt 0:04:18]} 18. Bb3 {[%emt 0:05:42]} Ba6 {[%emt 0:02:38]} 19. Qf2 {[%emt 0:01:25]} Nb8 {[%emt 0:04:00]} (19... a4 $16) 20. Bf4 {[%emt 0:03:49]} Qb6 {[%emt 0:03:44]} (20... Qb7 $142) 21. Rfc1 $18 {[%emt 0:00:44]} Nbd7 {[%emt 0:02:30]} 22. c5 {[%emt 0:05:02]} Qb5 {[%emt 0:02:30]} 23. Bc4 {[%emt 0:00:13]} (23. Ng3 $18) 23... Qb7 $16 {[%emt 0:00:09]} 24. Rxa5 {[%emt 0:00:39] White is more active.} Bxc4 {[%emt 0:00:09]} 25. Rxc4 {[%emt 0:00:08]} b3 {[%emt 0:00:07]} (25... e5 $16) 26. Ra1 {[%emt 0:01:41]} (26. Nc3 $18) 26... Qb5 {[%emt 0:04:52]} (26... e5 $142) 27. Rc3 {[%emt 0:00:26] Strongly threatening Rb1.} Ra8 {[%emt 0:02:45]} 28. Rb1 {[%emt 0:00:01] Black must now prevent c6.} b2 {[%emt 0:02:57] [#]} (28... Ra2 $16) 29. Rc2 $1 $18 {[%emt 0:01:46]} ({Inferior is} 29. c6 Ra1 30. Qf1 Nb6 31. Rxa1 bxa1=Q 32. Qxa1 Qxe2 $11) 29... Ra1 {[%emt 0:01:26]} 30. Nc3 {[%emt 0:02:10]} ({Better is} 30. Qe1 $18) 30... Qb3 {[%emt 0:04:36] A mistake that costs the game.} (30... Qc4 $1 $14 31. g3 (31. Rcxb2 Rxb1+ 32. Nxb1 Nxc5 $14) 31... e5) 31. Qe2 {[%emt 0:00:00] And now c6 would win.} Rda8 {[%emt 0:00:00] [#]} (31... Qb4 {was necessary.}) 32. Kf2 $1 {[%emt 0:00:00]} ({But not} 32. c6 $6 Nb6 $16) 32... R8a2 {[%emt 0:00:00]} 33. c6 {[%emt 0:00:00]} Nb6 $2 {[%emt 0:00:00]} (33... Rxb1 34. cxd7 Rf1+ 35. Kxf1 Nxd7) 34. Rbxb2 {[%emt 0:00:00]} Rxb2 {[%emt 0:00:00]} 35. Rxb2 {[%emt 0:00:00]} Qxc3 {[%emt 0:00:00]} 36. Rxb6 {[%emt 0:00:00] Rb8+ would kill now.} Qxd4+ {[%emt 0:00:00]} 37. Be3 {[%emt 0:00:00] Intending Rb8+ and mate.} Nxe4+ {[%emt 0:00:00]} (37... Qd8 $142 38. Qd2 Qc7) 38. fxe4 {[%emt 0:00:00] White wants to mate with Rb8+.} Qf6+ {[%emt 0:00:00]} 39. Kg3 {[%emt 0:02:19] Threatening mate with Rb8+.} Qe5+ {[%emt 0:00:00]} 40. Bf4 {[%emt 0:00:49]} Ra3+ {[%emt 0:00:00] [#]} 41. Qf3 $3 {[%emt 0:00:14][%mdl 512] Weighted Error Value: White=0.39/Black=0.60} 1-0

[Event "Cattolica Chess Festival 2022"]
[Site "Cattolica"]
[Date "2022.06.10"]
[Round "8.8"]
[White "Ojas Kulkarni"]
[Black "Kjartansson, Gudmundur"]
[Result "0-1"]
[ECO "D42"]
[WhiteElo "2235"]
[BlackElo "2452"]
[Annotator "TA"]
[PlyCount "60"]
[EventDate "2022.06.04"]
[EventCountry "ITA"]
[SourceTitle "playchess.com"]
[Source "ChessBase"]
[SourceQuality "1"]
[TimeControl "5400+30"]

{[%evp 22,60,32,0,18,21,26,0,0,0,0,0,0,-2,0,-2,0,0,0,0,1,0,0,-18,-10,-16,-11,-45,-29,-64,-64,-64,-64,-64,-64,-73,-64,-110,-110,-283,-291]} 1. e4 {[%emt 0:30:03] Mikhalevski,V} c6 {[%emt 0:30:16]} 2. d4 {[%emt 0:00:07]} d5 {[%emt 0:00:05]} 3. exd5 {[%emt 0:00:04]} cxd5 {[%emt 0:00:04]} 4. c4 {[%emt 0:00:06]} Nf6 {[%emt 0:00:04]} 5. Nc3 {[%emt 0:00:06]} e6 {[%emt 0:00:26]} 6. Nf3 {[%emt 0:00:06]} Be7 {[%emt 0:00:26]} 7. cxd5 {[%emt 0:00:07]} Nxd5 {[%emt 0:00:06]} 8. Bd3 {[%emt 0:00:06]} Nc6 {[%emt 0:00:03]} 9. O-O {[%emt 0:00:08]} O-O {[%emt 0:00:04]} 10. Re1 {[%emt 0:00:07]} Bf6 {[%emt 0:00:43]} 11. Be4 {[%emt 0:00:08]} Nce7 {[%emt 0:00:37]} 12. Qc2 {[%emt 0:00:11]} g6 {[%emt 0:01:01] D42: Queen's Gambit Declined: Semi-Tarrasch: 5 cxd5 Nxd5 6 e3 Nc6 7 Bd3 .} 13. Bh6 {[%emt 0:00:05]} Re8 {[%emt 0:01:33] [#]} 14. Rac1 $146 {[%emt 0:20:18]} (14. Ne5 {with more complications.} Bh8 15. Qb3 b6 16. Qa3) ({Predecessor:} 14. Qb3 b6 15. Nxd5 exd5 16. Bxd5 Nxd5 17. Rxe8+ Qxe8 18. Qxd5 Be6 19. Qe4 Rc8 20. Qf4 {½-½ (57) Solak,D (2563)-Kacheishvili,G (2599) Mallorca 2004 CBM 104 [Mikhalevski,V]}) 14... Bd7 {[%emt 0:02:02] The position is equal.} 15. Bxd5 {[%emt 0:00:28]} exd5 {[%emt 0:04:15]} 16. Bg5 {[%emt 0:04:33]} Bxg5 {[%emt 0:02:53]} 17. Nxg5 {[%emt 0:00:17]} Nf5 {[%emt 0:00:34]} 18. Rxe8+ {[%emt 0:08:17]} Bxe8 {[%emt 0:00:06]} 19. Nf3 {[%emt 0:00:08]} Bc6 {[%emt 0:00:30]} 20. Qd2 {[%emt 0:07:41]} f6 {[%emt 0:05:44]} 21. h4 {[%emt 0:04:08]} h5 {[%emt 0:01:31]} 22. b4 {[%emt 0:02:53]} Qd6 {[%emt 0:00:42]} 23. a3 {[%emt 0:07:23]} Kg7 {[%emt 0:04:53]} 24. Nd1 {[%emt 0:12:01]} Re8 {[%emt 0:05:00][%cal Ba8e8,Be8e4,Be4h4][%mdl 32]} 25. Ne3 {[%emt 0:00:11]} Nxe3 {[%emt 0:00:45]} 26. fxe3 {[%emt 0:00:01]} Bb5 {[%emt 0:00:48]} 27. Kf2 {[%emt 0:01:34]} Bc4 {[%emt 0:01:30]} 28. Rg1 {[%emt 0:01:43]} Re4 {[%emt 0:03:59]} 29. Qc3 {[%emt 0:00:51]} (29. Rc1 $15 {deserves consideration.}) 29... b5 $17 {[%emt 0:05:07] Black is much more active.} 30. Nd2 $2 {[%emt 0:00:45] [#]} (30. Rh1 $17) 30... Rxh4 {[%emt 0:00:41] Weighted Error Value: White=0.23 (precise) /Black=0.03 (flawless)} 0-1

[Event "Cattolica Chess Festival 2022"]
[Site "Cattolica"]
[Date "2022.06.10"]
[Round "8.9"]
[White "Milikow, Elie"]
[Black "Kolb, Tobias"]
[Result "1-0"]
[ECO "B12"]
[WhiteElo "2428"]
[BlackElo "2345"]
[Annotator "TA"]
[PlyCount "89"]
[EventDate "2022.06.04"]
[EventCountry "ITA"]
[SourceTitle "playchess.com"]
[Source "ChessBase"]
[SourceQuality "1"]
[TimeControl "5400+30"]

{[%evp 9,89,8,8,15,8,13,9,-6,17,0,7,14,10,8,7,8,26,15,20,0,0,0,0,0,79,77,80,77,79,78,81,79,87,96,93,89,110,119,119,126,132,139,133,122,127,124,125,122,155,85,144,152,136,116,142,118,93,112,97,37,95,27,86,8,8,33,157,185,351,348,504,504,475,435,1527,1484,1448,1328,5361,5302,2350,2237]} 1. e4 {[%emt 0:32:29]} c6 {[%emt 0:30:05]} 2. d4 {[%emt 0:00:10]} d5 {[%emt 0:00:03]} 3. e5 {[%emt 0:00:18]} Bf5 {[%emt 0:00:04]} 4. h4 {[%emt 0:00:05]} h5 {[%emt 0:00:04]} 5. Bd3 {[%emt 0:00:05]} Bxd3 {[%emt 0:00:04]} 6. Qxd3 {[%emt 0:00:07][%cal Oe5e6] B12: Caro-Kann: Advance Variation.} Qa5+ {[%emt 0:00:03]} 7. Nd2 {[%emt 0:00:25][%cal Oe5e6]} e6 {[%emt 0:00:04]} 8. Ne2 {[%emt 0:00:54] The position is equal.} Ne7 {[%emt 0:01:23]} 9. O-O {[%emt 0:04:34]} Nf5 {[%emt 0:00:23]} 10. Nf3 {[%emt 0:01:31]} Qa6 {[%emt 0:02:05]} 11. Qd1 {[%emt 0:01:16]} c5 {[%emt 0:12:18]} 12. c3 {[%emt 0:09:45]} cxd4 {[%emt 0:01:27]} 13. Nexd4 {[%emt 0:05:15]} Nxd4 {[%emt 0:00:30] [#]} 14. Qxd4 $146 {[%emt 0:06:28]} ({Predecessor:} 14. cxd4 Nc6 15. Bg5 Qb6 16. Re1 Bb4 17. Re3 Qc7 18. Rc1 Ba5 19. a3 Bb6 20. b4 {0-1 (78) Sawatzki,F (2385)-Hammer,J (2637) Helsingor 2019}) 14... Nc6 {[%emt 0:02:20]} 15. Qf4 {[%emt 0:02:05]} Be7 {[%emt 0:08:33]} 16. Qg3 {[%emt 0:07:37]} Qd3 {[%emt 0:24:35]} (16... g6 $11) 17. Qxg7 $16 {[%emt 0:03:09]} Kd7 {[%emt 0:00:42] [#] Hoping for ...Rag8.} 18. Qg3 {[%emt 0:01:13]} ({But not} 18. Qxf7 $2 Raf8 19. Qg7 Rhg8 20. Qxg8 Rxg8 $19) 18... Rhg8 {[%emt 0:03:56]} 19. Bg5 {[%emt 0:01:21]} Bxg5 {[%emt 0:01:21]} 20. Nxg5 {[%emt 0:06:17]} Qxg3 {[%emt 0:00:11]} 21. fxg3 {[%emt 0:00:06]} Nxe5 {[%emt 0:07:53]} 22. Nxf7 {[%emt 0:01:06]} Nc4 {[%emt 0:01:02]} 23. Ng5 {[%emt 0:01:15]} Raf8 {[%emt 0:00:04]} 24. Rfe1 {[%emt 0:04:18]} Rg6 {[%emt 0:00:30]} 25. Re2 {[%emt 0:02:44]} Nd6 {[%emt 0:00:20]} 26. Rae1 {[%emt 0:01:09][%cal Rg5e6]} Rff6 {[%emt 0:00:47]} 27. Kh2 {[%emt 0:02:37]} Nf5 {[%emt 0:00:22]} 28. b3 {[%emt 0:01:26]} b5 {[%emt 0:01:01]} 29. Ra1 {[%emt 0:02:20]} (29. Rd2 $142) 29... a5 {[%emt 0:01:16]} ({Black should play} 29... Rg8) 30. a4 {[%emt 0:02:47]} b4 {[%emt 0:00:03]} 31. Rc1 {[%emt 0:00:28]} Rg8 {[%emt 0:00:00]} 32. cxb4 {[%emt 0:00:00]} Nd4 {[%emt 0:00:00]} 33. Re3 {[%emt 0:00:00] aiming for Rd3.} axb4 {[%emt 0:00:00]} 34. Rd3 {[%emt 0:00:00]} (34. Nf3 $16 Nxf3+ 35. gxf3) 34... Nc6 {[%emt 0:00:00]} (34... e5 $14) 35. Nf3 {[%emt 0:00:00]} (35. Rd2 $16) 35... Rfg6 {[%emt 0:00:00]} (35... Kd6 $11) 36. Rd2 {[%emt 0:00:00]} ({White should try} 36. Rc2 $16) 36... Rxg3 $11 {[%emt 0:00:00]} 37. Rdc2 $36 {[%emt 0:00:00][%mdl 2048] White is pushing.} Ne7 {[%emt 0:00:00]} ({Better is} 37... Na5 $14) 38. Ne5+ $16 {[%emt 0:00:00]} Ke8 $2 {[%emt 0:00:00]} (38... Kd8) 39. a5 $18 {[%emt 0:00:00] Black must now prevent a6.} Nf5 {[%emt 0:02:55]} (39... Rxb3 {is a better defense.} 40. Rc7 (40. Rc8+ Nxc8 41. Rxc8+ Ke7 $18) 40... Rbg3) 40. a6 {[%emt 0:00:32] White is clearly winning.} Ke7 {[%emt 0:00:31]} 41. a7 {[%emt 0:00:57]} Rc3 {[%emt 0:01:27]} (41... Rxb3 $142 42. Rc8 Rxc8 43. Rxc8 Ra3) 42. Rxc3 {[%emt 0:00:24]} bxc3 {[%emt 0:00:03] [#]} 43. Nc6+ $1 {[%emt 0:00:09]} Kd6 {[%emt 0:00:05]} 44. Nb8 {[%emt 0:00:06]} Ne3 {[%emt 0:01:47]} 45. a8=Q {[%emt 0:00:28] Weighted Error Value: White=0.14 (very precise) /Black=0.32} 1-0

[Event "Cattolica Chess Festival 2022"]
[Site "Cattolica"]
[Date "2022.06.10"]
[Round "8.10"]
[White "Ceres, Dragos"]
[Black "Buksa, Nataliya"]
[Result "0-1"]
[ECO "B31"]
[WhiteElo "2380"]
[BlackElo "2406"]
[Annotator "TA"]
[PlyCount "132"]
[EventDate "2022.06.04"]
[EventCountry "ITA"]
[SourceTitle "playchess.com"]
[Source "ChessBase"]
[SourceQuality "1"]
[TimeControl "5400+30"]

{[%evp 10,132,15,35,35,42,40,7,10,2,0,0,7,9,4,0,13,9,9,9,8,0,0,0,13,12,24,0,16,26,14,0,0,0,5,-31,-29,-38,-10,-18,-9,-47,-18,-33,-33,-165,-183,-175,-182,-178,-171,-183,0,0,0,-168,-84,-102,-98,-108,-24,-29,-23,-17,-8,-8,-10,-10,-17,-130,-125,-130,-87,-87,-87,-77,-56,-42,-29,-70,-72,-72,-70,-72,-70,-77,-75,-76,-61,-75,-58,-53,-47,-47,-47,-199,-228,-211,-197,-266,-275,-271,-241,-209,-212,-441,-438,-414,-414,-1009,-642,-29981,-29982,-29983,-29984,-29983,-29984,-29984,-29985,-29988,-29989,-29989,-29990,-29990,-29991]} 1. e4 {[%emt 0:34:33]} c5 {[%emt 0:30:05]} 2. Nf3 {[%emt 0:00:04]} Nc6 {[%emt 0:00:03]} 3. Bb5 {[%emt 0:00:09]} g6 {[%emt 0:00:10]} 4. O-O {[%emt 0:00:10]} Bg7 {[%emt 0:00:08]} 5. Bxc6 {[%emt 0:00:12]} bxc6 {[%emt 0:00:03]} 6. Re1 {[%emt 0:00:18]} Qc7 {[%emt 0:00:04] B31: Sicilian: 2...Nc6 3 Bb5 g6.} 7. c3 {[%emt 0:00:37]} d6 {[%emt 0:00:05]} 8. h3 {[%emt 0:01:52]} Nf6 {[%emt 0:00:13] The position is equal.} 9. d4 {[%emt 0:00:43]} cxd4 {[%emt 0:00:04]} 10. cxd4 {[%emt 0:00:05]} O-O {[%emt 0:00:02][%cal Bh8f8,Bf8d8,Bd8d5][%mdl 32]} 11. Nc3 {[%emt 0:00:33]} c5 {[%emt 0:00:06]} 12. e5 {[%emt 0:00:23]} dxe5 {[%emt 0:01:30]} 13. dxe5 {[%emt 0:00:05]} Rd8 {[%emt 0:00:01]} 14. Qa4 {[%emt 0:00:08]} Nh5 {[%emt 0:00:03] [#]} 15. Bd2 $146 {[%emt 0:02:05]} ({Predecessor:} 15. Qh4 Bb7 16. Ne4 Bxe5 17. Nxe5 Qxe5 18. Bg5 Rd4 19. Nc3 Qf5 20. f4 f6 21. Bh6 {0-1 (27) Vokhidov,S (2529)-Ivic,V (2581) Chess.com INT 2020}) 15... Bb7 {[%emt 0:30:51]} 16. Ne4 {[%emt 0:00:24] Black must now prevent Ba5.} Rd5 {[%emt 0:01:43]} (16... Bxe5 $2 17. Ba5 Qd7 18. Qxd7 Rxd7 19. Nxe5 $18) 17. Rad1 {[%emt 0:10:35]} Bh8 {[%emt 0:04:50]} (17... Bxe5 {is more complex.} 18. Ba5 Qb8 19. Nxe5 Qxe5 20. Nc3 Rxd1 21. Qxd1 Qg5) 18. Ba5 {[%emt 0:08:30]} (18. b3 {looks sharper.} Bxe5 19. Ba5 Qb8 20. Rxd5 Bxd5 21. Nxe5 Qxe5 22. Nxc5 Qf5 23. Qg4) 18... Qc6 {[%emt 0:01:36]} 19. Qxc6 {[%emt 0:01:54]} Bxc6 {[%emt 0:00:03]} 20. Rxd5 {[%emt 0:00:18]} Bxd5 {[%emt 0:00:03]} 21. Nxc5 {[%emt 0:00:28]} Nf4 {[%emt 0:01:20] Prevents Nd3.} 22. Kh2 {[%emt 0:02:25]} Rc8 {[%emt 0:01:46]} 23. b4 {[%emt 0:07:46]} Bxa2 {[%emt 0:00:26]} 24. Nd4 {[%emt 0:01:16]} Bc4 {[%emt 0:06:23]} 25. Re4 {[%emt 0:08:27]} Nd5 {[%emt 0:07:42]} 26. g3 {[%emt 0:03:24]} Nc3 {[%emt 0:03:09]} 27. Re3 {[%emt 0:00:42]} (27. Re1 $15 Nb5 28. Nxb5 Bxb5 29. f4) 27... Nd1 $36 {[%emt 0:01:57][%csl LRe3,LRf2][%mdl 2048] Black is in control.} 28. Re1 {[%emt 0:07:16]} Nxf2 {[%emt 0:01:12]} 29. Rc1 {[%emt 0:00:15]} Bd5 {[%emt 0:02:57]} 30. Re1 {[%emt 0:01:53]} Bc4 {[%emt 0:02:15] Against Nb5} 31. Rc1 {[%emt 0:02:43]} Bd5 {[%emt 0:00:00]} 32. Re1 {[%emt 0:00:00] Inhibits Ne4.} f5 {[%emt 0:00:00]} (32... a6 $19 33. Bb6 e6) 33. exf6 $17 {[%emt 0:00:00]} Bxf6 {[%emt 0:00:00]} 34. Nb5 {[%emt 0:00:00] [#]} a6 {[%emt 0:00:00]} ({Black should play} 34... Nd3 $1 $17 {[%cal Rd3e1][%mdl 512]} 35. Rd1 (35. Nxd3 $2 Rc2+ 36. Kg1 Bc4 $19) 35... Nxc5 36. Nxa7 Bf3 37. Nxc8 Bxd1 38. bxc5 Bf3) 35. Nc7 $11 {[%emt 0:00:00]} Bc4 {[%emt 0:00:00] A strong pair of Bishops.} 36. Rc1 {[%emt 0:00:00]} Bb5 {[%emt 0:00:00]} 37. Nxb5 {[%emt 0:00:00]} axb5 {[%emt 0:00:00]} 38. Re1 $1 {[%emt 0:00:00] Prevents Ne4.} Bd4 {[%emt 0:00:00]} 39. Ne6 {[%emt 0:00:00]} (39. Rxe7 $11 {keeps the balance.} Bxc5 40. bxc5) 39... Nd3 $17 {[%emt 0:00:29]} 40. Re2 {[%emt 0:00:00] Prevents Rc2.} Nc1 {[%emt 0:01:53] Black is more active.} 41. Rd2 {[%emt 0:00:00]} ({Avoid the trap} 41. Nxd4 $2 Nxe2 42. Nxb5 Rc2 $19) 41... Be3 {[%emt 0:01:51]} 42. Rb2 {[%emt 0:00:00]} Bh6 {[%emt 0:01:35]} 43. Nc7 {[%emt 0:00:00]} Nd3 {[%emt 0:00:04]} 44. Re2 {[%emt 0:00:00] [#]} Nxb4 $1 {[%emt 0:00:20]} 45. Nxb5 {[%emt 0:00:46]} Nd5 {[%emt 0:00:57]} 46. Nd4 {[%emt 0:01:07]} Bg7 {[%emt 0:00:08]} 47. Ne6 {[%emt 0:00:35]} Bf6 {[%emt 0:00:03]} 48. Be1 {[%emt 0:00:57]} Rc1 {[%emt 0:06:20]} 49. g4 {[%emt 0:00:50]} g5 {[%emt 0:00:00]} 50. h4 {[%emt 0:02:01]} h6 {[%emt 0:00:00][%cal Bh7h6,Bh6g5,Bg5f4][%mdl 32]} 51. hxg5 {[%emt 0:00:05]} hxg5 {[%emt 0:00:00]} 52. Bd2 $2 {[%emt 0:02:52] Black keeps a firm grip on the game.} (52. Kg2 $15) 52... Rc2 $19 {[%emt 0:00:00] Hoping for ...Bc3.} 53. Rg2 {[%emt 0:00:07]} Be5+ {[%emt 0:00:00]} 54. Kg1 {[%emt 0:00:20]} (54. Kh1 $142) 54... Bf4 {[%emt 0:00:00]} ({Inferior is} 54... Kf7 55. Nxg5+ Kg6 56. Nf3 $11) 55. Nxf4 {[%emt 0:02:20]} gxf4 {[%emt 0:01:29][%mdl 4096] Endgame KRB-KRN} ({Weaker is} 55... Nxf4 56. Rh2 $17) 56. Be1 {[%emt 0:02:24]} Rc1 {[%emt 0:00:51]} 57. Kf2 {[%emt 0:00:51]} (57. Re2) 57... e5 {[%emt 0:00:11][%cal Be7e5,Be5e4,Be4e3,Be3d2][%mdl 32] aiming for ...Ne3.} 58. Bd2 {[%emt 0:00:51] Prevents Ne3.} Rc4 {[%emt 0:00:04] Strongly threatening ...e4.} 59. Rg1 {[%emt 0:01:57]} (59. Rh2 $142 Kg7 60. Ke2) 59... e4 {[%emt 0:02:55] ...Rc2 is the strong threat.} 60. Rc1 {[%emt 0:00:58] Inhibits Rc2.} e3+ {[%emt 0:00:00] Black mates.} 61. Ke2 {[%emt 0:00:11]} f3+ $1 {[%emt 0:00:00]} 62. Kxf3 {[%emt 0:01:07]} exd2 {[%emt 0:00:00]} 63. Rd1 {[%emt 0:00:11]} Rd4 {[%emt 0:00:00]} 64. Ke2 {[%emt 0:00:36]} Nc3+ {[%emt 0:00:00]} 65. Ke3 {[%emt 0:00:03]} Nxd1+ {[%emt 0:00:00]} 66. Kxd4 {[%emt 0:00:04]} Nf2 {[%emt 0:00:00] Weighted Error Value: White=0.33/Black=0.19 (very precise)} 0-1